Cogmind - Beta 16.1 @@@ ROGUE MODE // 2026.04.25 @ 14:18:14 Player: kite Result: Self-destructed Performance ------------- Evolutions (1) 500 Regions Visited (3) 600 Robots Destroyed (32) 160 Value Destroyed (728) 728 Prototype IDs (0) 0 Alien Tech Used (0) 0 Bonus (0) 0 TOTAL SCORE: 1988 Bonus ------- None Cogmind --------- Core Integrity 293/400 Matter 254/300 Energy 99/100 System Corruption 0% Temperature Cool (0) Movement Treading (240) Ox1 Location -9/Materials Parts ------- > --- POWER (1) -------- (None) > --- PROPULSION (3) --- Light Treads > --- UTILITY (3) ------ Improved Heat Sink Large Storage Unit > --- WEAPON (2) ------- Beam Cannon Assault Rifle > --- INVENTORY (15) --- Light Ion Engine Light Treads Signal Interpreter Shield Generator Small Laser Particle Gun Beam Cannon Beam Cannon Assault Rifle Assault Rifle Improved Light Cannon Grenade Launcher Grenade Launcher Grenade Launcher Plasma Cutter Peak State ------------ > --- POWER ------------ Light Ion Engine > --- PROPULSION ------- Light Treads Light Treads Light Treads > --- UTILITY ---------- Improved Heat Sink Improved Heat Sink Large Storage Unit > --- WEAPON ----------- Beam Cannon Improved Light Cannon > --- INVENTORY -------- Light Ion Engine Light Treads Small Laser Particle Gun Beam Cannon Beam Cannon Assault Rifle Assault Rifle Assault Rifle Grenade Launcher [Rating: 15] Favorites ----------- Power Light Ion Engine Engine Light Ion Engine Propulsion Light Treads Treads Light Treads Utility Improved Heat Sink Device Improved Heat Sink Storage Small Storage Unit Processor Signal Interpreter Weapon Beam Cannon Energy Gun Particle Gun Energy Cannon Beam Cannon Ballistic Gun Assault Rifle Ballistic Cannon Improved Light Cannon Launcher Grenade Launcher Build | -11 -10 -10 -9 ------- Run | Yrd Mat Min Mat Slots Evolved 2 | . . . 2 Power . | . . . . Propulsion 1 | . . . 1 Utility 1 | . . . 1 Weapon . | . . . . Parts Attached 20 | 6 9 2 3 Power 3 | 1 1 1 . Engine 3 | 1 1 1 . Core . | . . . . Reactor . | . . . . Propulsion 4 | 2 2 . . Treads 4 | 2 2 . . Leg . | . . . . Wheel . | . . . . Hover . | . . . . Flight . | . . . . Utility 5 | 1 3 1 . Device 2 | . 1 1 . Storage 2 | 1 1 . . Processor 1 | . 1 . . Hackware . | . . . . Protection . | . . . . Artifact . | . . . . Weapon 8 | 2 3 . 3 Energy Gun 1 | . 1 . . Energy Cannon 2 | . 2 . . Ballistic Gun 3 | 2 . . 1 Ballistic Cannon 1 | . . . 1 Launcher 1 | . . . 1 Special Weapon . | . . . . Impact Weapon . | . . . . Slashing Weapon . | . . . . Piercing Weapon . | . . . . Special Melee Weapon . | . . . . Unidentified Prototypes . | . . . . Parts Lost 5 | . 1 . 4 Power 2 | . 1 . 1 Propulsion 2 | . . . 2 Utility 1 | . . . 1 Weapon . | . . . . Highest Loss Streak 4 | . 1 . 4 To Critical Strikes 1 | . . . 1 Average Backups 7 | . 5 9 12 Power . | . . . 1 Propulsion 1 | . 1 2 1 Utility . | . . . 1 Weapon 4 | . 3 6 8 Tool/Special . | . . . . Unused Backups 12 | . 3 . 9 Power . | . . . . Propulsion . | . . . . Utility 2 | . . . 2 Weapon 9 | . 3 . 6 Tool/Special 1 | . . . 1 Average Slot Usage (%) 96 | . 97 100 92 Engine 13 | . 13 14 11 Treads 28 | . 28 28 30 Device 13 | . 11 14 17 Storage 13 | . 14 14 11 Energy Gun 2 | . 3 . . Energy Cannon 19 | . 18 28 17 Ballistic Gun 3 | . 5 . 1 Peak Build Rating 15 | 6 10 10 15 Average Rating 9 | 4 8 9 12 On Entrance 6 | . 6 9 10 Avg Prop Armor Cover (%) . | . . . . Naked Turns . | . . . . Heaviest Build 32 | 11 30 30 32 Greatest Support 60 | 40 40 40 60 Greatest Overweight (x) 1 | . . . 1 Average Overweight (x) . | . . . . Largest Inventory Capacity 15 | 8 15 15 15 Average Capacity 10 | 7 9 15 15 Most Carried 15 | 2 8 10 15 Average Carried 7 | . 5 9 12 Final Capacity 15 | 8 15 15 15 Final Carried 15 | 2 8 10 15 Class Distribution -------------------- 100% | Mutant Dominant Class ---------------- Mutant | -10/Materials Mutant | -10/Mines Mutant | -9/Materials Resources | -11 -10 -10 -9 ----------- Run | Yrd Mat Min Mat Matter Collected 476 | 233 140 30 73 Remotely . | . . . . Salvage Created 995 | . 426 161 408 Parts 72 | . 30 9 33 Haulers Intercepted . | . . . . Recyclers Shooed . | . . . . Parts Field Recycled . | . . . . Retrieved Matter . | . . . . Parts Self-Destructed . | . . . . Prevented . | . . . . Parts Restored . | . . . . Kills | -11 -10 -10 -9 ------- Run | Yrd Mat Min Mat Combat Hostiles Destroyed 24 | . 9 2 13 Guns 3 | . 3 . . Cannons 18 | . 6 2 10 AOE 3 | . . . 3 Classes Destroyed 7 | . 6 . 1 Worker 2 | . 1 1 . Builder 3 | . 1 . 2 Recycler 2 | . 1 1 . Watcher 1 | . 1 . . Swarmer 9 | . 3 . 6 Grunt 14 | . 6 2 6 Sentry 1 | . . . 1 Best Kill Streak 9 | . 4 4 9 Combat Bots Only 5 | . 3 2 5 Max Kills in Single Turn 2 | . 1 1 2 Gunslinging . | . . . . Exploded 2 | . . . 2 Melee . | . . . . Uniques/NPCs Destroyed . | . . . . Combat | -11 -10 -10 -9 -------- Run | Yrd Mat Min Mat Hostile Shots Fired 149 | . 54 10 85 Missed 40 | . 7 5 28 Hits 109 | . 47 5 57 Projectile 109 | . 47 5 57 Critical Strikes 1 | . . . 1 Damage Taken 1135 | . 514 63 558 Core 195 | . 77 11 107 Absorbed by Shields . | . . . . Core Remaining (%) 82 | 100 . 64 . Volleys Fired 77 | . 27 8 42 Largest 2 | . 2 2 2 Hottest 125 | . 125 120 120 Shots Fired 147 | . 54 16 77 Gun 36 | . 26 . 10 Cannon 109 | . 28 16 65 Launcher 2 | . . . 2 Special . | . . . . Kinetic 25 | . 14 . 11 Thermal 120 | . 40 16 64 Explosive 2 | . . . 2 Electromagnetic . | . . . . Robot Hit Streak 16 | . 5 5 16 Robot Miss Streak 6 | . 3 2 6 Penetration Max . | . . . . Secondary Targets 1 | . 1 . . Max Gunslinging Chain 1 | . 1 . . Shots Hit Robots 82 | . 34 8 40 Core Hits 39 | . 18 5 16 Critical Kills . | . . . . Critical Parts Destroyed . | . . . . Critical Strikes 1 | . 1 . . Burn 1 | . 1 . . Melee Attacks . | . . . . Impact . | . . . . Slashing . | . . . . Piercing . | . . . . Sneak Attacks . | . . . . Combat Hostiles . | . . . . Follow-up Attacks . | . . . . Damage Inflicted 1650 | . 562 142 946 Guns 286 | . 215 . 71 Cannons 1188 | . 347 142 699 Explosions 176 | . . . 176 Melee . | . . . . Ramming . | . . . . Kinetic 164 | . 93 . 71 Thermal 1310 | . 469 142 699 Explosive 176 | . . . 176 Electromagnetic . | . . . . Impact . | . . . . Slashing . | . . . . Piercing . | . . . . Highest Corruption . | . . . . Average Corruption . | . . . . Corruption Purged . | . . . . Corruption Blocked . | . . . . Overload Shots . | . . . . Overflow Damage 10 | . . . 10 Projectiles . | . . . . Explosions 10 | . . . 10 Melee . | . . . . Knockbacks . | . . . . Impact . | . . . . Kinetic . | . . . . Secondary . | . . . . Self-Inflicted Damage . | . . . . Shots . | . . . . Rammed . | . . . . Targets Rammed . | . . . . Kicked . | . . . . Crushed . | . . . . Highest Temperature 126 | . 114 126 90 Average Temperature 39 | . 35 57 37 Received Heat Transfer 417 | . 231 36 150 Siege Activations . | . . . . Martial Activations . | . . . . Shielding Activations . | . . . . Robots Disrupted . | . . . . Combat Hostiles . | . . . . Robots Corrupted . | . . . . Combat Hostiles . | . . . . Parts Fried . | . . . . Impact Corruptions . | . . . . Robots Melted . | . . . . Combat Hostiles . | . . . . Parts Melted 3 | . . 1 2 Heat Transferred 2886 | . 1110 296 1480 Parts Sabotaged . | . . . . Parts Stolen . | . . . . Parts Stripped . | . . . . Power Chain Reactions . | . . . . Alert | -11 -10 -10 -9 ------- Run | Yrd Mat Min Mat Maximum Alert Level 1 | . . . 1 Low Security (%) 98 | 100 100 100 94 Level 1 1 | . . . 5 Level 2 . | . . . . Level 3 . | . . . . Level 4 . | . . . . Level 5 . | . . . . High Security . | . . . . Max Security . | . . . . Peak Influence 219 | . 77 50 219 Initial 3 | . . . 3 Average 29 | . 23 24 54 Influence Increases 701 | . 271 60 370 Destroy 0b10 Robot/C 480 | . 180 40 260 Destroy 0b10 Robot/NC 40 | . 20 10 10 Destroy Leader 102 | . 42 10 50 Successful Hack 14 | . 14 . . Disable Machine 30 | . 15 . 15 Destroy Structure 5 | . . . 5 Lose Combat Pursuer 30 | . . . 30 Influence Decreases 497 | . 271 50 176 Entered New Map 7 | . . . 7 Time Decay 440 | . 261 50 129 Lost Part 50 | . 10 . 40 Squads Dispatched 2 | . 1 . 1 Investigation . | . . . . Extermination . | . . . . Reinforcement 2 | . 1 . 1 Assault . | . . . . Garrison . | . . . . Intercept . | . . . . Searches Triggered . | . . . . Construction Impeded . | . . . . Haulers Reinforced . | . . . . Active Scanning Responses . | . . . . Cargo Convoy Interrupts . | . . . . Stealth | -11 -10 -10 -9 --------- Run | Yrd Mat Min Mat Distress Signals 1 | . 1 . . Communications Jammed . | . . . . Distress Signals . | . . . . Times Spotted 35 | . 15 2 18 Peak Tracking Total 6 | . 4 2 6 Tactical Retreats 2 | . . . 2 Traps | -11 -10 -10 -9 ------- Run | Yrd Mat Min Mat Traps Triggered . | . . . . Indirectly . | . . . . Trap Hack Attempts . | . . . . Triggered . | . . . . Disarmed . | . . . . Reprogrammed . | . . . . Reused . | . . . . Traps Extracted . | . . . . Installed . | . . . . Triggered . | . . . . Machines | -11 -10 -10 -9 ---------- Run | Yrd Mat Min Mat Machines Disabled 2 | . 1 . 1 Max in Single Turn 1 | . 1 . 1 Machines Repaired . | . . . . Machines Dismantled . | . . . . Machines Sabotaged . | . . . . Overloaded Fab Kills . | . . . . Hacking | -11 -10 -10 -9 --------- Run | Yrd Mat Min Mat Machines Accessed 5 | . 4 . 1 Terminals 5 | . 4 . 1 Fabricators . | . . . . Repair Stations . | . . . . Recycling Units . | . . . . Scanalyzers . | . . . . Garrison Access . | . . . . Total Hacks 14 | . 11 . 3 Successful 4 | . 3 . 1 Failed 9 | . 7 . 2 Catastrophic 2 | . 2 . . Database Lockouts 1 | . 1 . . Manual 16 | . 13 . 3 Terminals 14 | . 11 . 3 Fabricators . | . . . . Repair Stations . | . . . . Recycling Units . | . . . . Scanalyzers . | . . . . Garrison Access . | . . . . Terminal Hacks 3 | . 3 . . Part Schematic 2 | . 2 . . Registered Components 1 | . 1 . . Fabricator Hacks . | . . . . Repair Station Hacks . | . . . . Recycling Unit Hacks . | . . . . Scanalyzer . | . . . . Garrison Access Hacks . | . . . . Unauthorized Hacks 1 | . . . 1 Terminals 1 | . . . 1 Botnet 1 | . . . 1 Fabricators . | . . . . Repair Stations . | . . . . Recycling Units . | . . . . Scanalyzers . | . . . . Garrison Access . | . . . . Data Cores Recovered . | . . . . Used . | . . . . Hacking Detections 6 | . 5 . 1 Full Trace Events 2 | . 2 . . Feedback Events . | . . . . Feedback Blocked . | . . . . Robot Schematics Acquired . | . . . . Robots Built . | . . . . Authchips . | . . . . Time . | . . . . Total Robot Build Rating . | . . . . Part Schematics Acquired 2 | . 2 . . Parts Built . | . . . . Authchips . | . . . . Time . | . . . . Total Part Build Rating . | . . . . Part Studies Acquired . | . . . . Parts Repaired . | . . . . Time . | . . . . Parts Recycled . | . . . . Recycled Matter . | . . . . Retrieved Matter . | . . . . Retrieved Components . | . . . . Parts Scanalyzed . | . . . . Part Schematics Acquired . | . . . . Parts Damaged . | . . . . Bothacking | -11 -10 -10 -9 ------------ Run | Yrd Mat Min Mat Used RIF Installer . | . . . . Robots Hacked . | . . . . Non-combat . | . . . . Combat . | . . . . Robot Hacks Applied . | . . . . Relay Couplers Released . | . . . . Fabnet Peak Effective % . | . . . . Robots Rewired . | . . . . Allies Hacked . | . . . . Hacks Repelled . | . . . . Allies | -11 -10 -10 -9 -------- Run | Yrd Mat Min Mat Total Allies . | . . . . Largest Group . | . . . . Highest-Rated Group . | . . . . Highest-Rated Ally . | . . . . Total Orders . | . . . . Ally Attacks . | . . . . Total Damage . | . . . . Kills . | . . . . Allies Corrupted . | . . . . Allies Melted . | . . . . Intel | -11 -10 -10 -9 ------- Run | Yrd Mat Min Mat Active Infowar (turns) . | . . . . Robot Analysis Total . | . . . . Derelict Logs Recovered . | . . . . Drone Launches . | . . . . Drone Recoveries . | . . . . Exploration | -11 -10 -10 -9 ------------- Run | Yrd Mat Min Mat Turns Passed 1584 | 90 987 130 377 Spaces Moved 796 | 52 545 61 138 Core 3 | 3 . . . Treads 793 | 49 545 61 138 Legs . | . . . . Wheels . | . . . . Hover . | . . . . Flight . | . . . . Fastest Speed 50 | 50 160 160 160 Average Speed 159 | 153 160 160 161 Slowest Speed 240 | 160 160 160 240 Overloaded Moves . | . . . . Propulsion Burnouts . | . . . . Robots Hopped . | . . . . Potential Cave-ins . | . . . . Cave-ins Triggered . | . . . . Exploration Rate (%) 30 | 5 82 20 16 Regions Visited 3 Branch Regions 1 Pre-discovered Areas . | . . . . Known Exits Taken 1 | . . 1 . Unknown Exits Taken 2 | 1 1 . . Scrap Searched . | . . . . Spaces Dug . | . . . . Terrain Destroyed 3 | . . . 3 Melee . | . . . . Projectile . | . . . . AOE 3 | . . . 3 Terrain Rammed . | . . . . Walls Destroyed . | . . . . Machines Disabled . | . . . . Actions | -11 -10 -10 -9 --------- Run | Yrd Mat Min Mat Total 956 | 59 608 77 212 Wait 32 | . 8 7 17 Move 793 | 51 544 60 138 Hop . | . . . . Pick Up 20 | 2 11 . 7 Fast Attach 9 | 6 3 . . Attach 4 | . 2 . 2 Detach . | . . . . Swap 13 | . 5 2 6 Drop 8 | . 8 . . Fire 77 | . 27 8 42 Melee . | . . . . Ram . | . . . . Kick . | . . . . Crush . | . . . . Escape Stasis . | . . . . Rewire . | . . . . Trap . | . . . . Miscellaneous . | . . . . Route ------- -11/Scrapyard -10/Materials (discovered 5 exits: *Mat x3 / [*Min] / [*Sub]) -10/Mines -9/Materials History --------- Turn | Location | Event 8 | -11/Scrapyard | Discovered new exit (range 14) 91 | -11/Scrapyard | Entered Materials 191 | -10/Materials | Discovered new exit (range 12) 295 | -10/Materials | Central database locked down 316 | -10/Materials | Build established: Mutant 442 | -10/Materials | Discovered new exit (range 14) 452 | -10/Materials | Discovered new exit (range 14) 732 | -10/Materials | Identified exit to Materials 826 | -10/Materials | Discovered exit to Materials (range 13) 1046 | -10/Materials | Discovered new exit (range 12) 1078 | -10/Materials | Entered Mines 1083 | -10/Mines | Met a Derelict bent on vengeance 1186 | -10/Mines | Discovered exit to Materials (range 7) 1208 | -10/Mines | Entered Materials 1208 | -9/Materials | Evolved 2 slots: Propulsion x1, Utility x1 1585 | -9/Materials | Self-destructed Last Messages --------------- 01537_ U-05 Engineer lays Concrete. 01550_ U-05 Engineer builds a Wall. 01553_ S-10 Pest destroyed. 01554_ Critical hit (Destroy). 01554_ Lgt. Treads destroyed. 01556_ U-05 Engineer lays Concrete. 01556_ S-10 Pest destroyed. 01558_ U-05 Engineer lays Concrete. 01565_ Y-45 Defender destroyed. 01565_ U-05 Engineer lays Concrete. 01569_ K-01 Serf collects debris. 01569_ U-05 Engineer lays Concrete. 01570_ U-05 Engineer destroyed. 01572_ K-01 Serf collects debris. 01573_ Acquired 19 matter. 01576_ K-01 Serf collects debris. 01580_ Lgt. Ion Engine destroyed. 01581_ K-01 Serf collects debris. 01581_ U-05 Engineer lays Concrete. 01581_ K-01 Serf collects debris. Map ----- +----------------------------------------------------+ | ?????????????????????????????????????????????????? | | ?????????????????????????????????????????????????? | | ?????????????????????????????????????????????????? | | ?????????????????????????????????????????????????? | | ?????????????????????????????????????????????????? | | ?????????????????????????????????????????????????? | | ?????????????????????????????????????????????????? | | ?????????????????????????????????????????????????? | | ?????????????????????????????????????????????????? | | ?????????????????????????????????????????????????? | | ?????????????????????????????????????????????????? | | ?????????????????????????????????????????????????? | | ???????????????????#?????????????????????????????? | | ???????????????????# ???????????????????????????? | | ???????????????##### ???????????????????????????? | | ???????????????? ???????????????????????????? | | ???????????????? ??????????????????????????? | | ????????????????? a??????????????????????????? | | ?????????????????"" ??????????????? ?????????? | | ?????????????????""" ############### ??????????? | | ????????????????"""" =k ???????????? | | ????????????????"""" u* = #???????????? | | ???????????? """ * *%! "" #???????????? | | ???????????? *[==!= T" #???????????? | | ??????????????? [[%%k! "" #???????????? | | ?????????????????????# #@*k #???????????? | | ???????????????# #=%* #???????????? | | ???????????????# ??????# #???????????? | | ????????????????????????# #???????????? | | ????????????????????????# ###########?? | | ????????????????????????# ==[ # #?? | | ????????????????????????# =[[ # #?? | | ????????????????????????# =g[ ## #?? | | ????????????????????????# ## +?? | | ????????????????????????# !## #?? | | ????????????????????????# | ##%= #?? | | ??????????????????? =% %/%[ #?? | | ????????????????????#######+#######+## [ #?? | | ????????????????????????????????# ###########?? | | ????????????????????????????????# #???????????? | | ????????????????????????????????#! #???????????? | | ????????????????????????????????# #???????????? | | ????????????????????????????????# #???######### | | ????????????????????????????????# #???# | | ????????????????????????????????# ##### | | ????????????????????????????????# + | | ????????????????????????????????# ######+###### | | ????????????????????????????????###### | | ?????????????????????????????????????# """ """ | | ?????????????????????????????????????# """ """ | +----------------------------------------------------+ Best States ------------- Heat Dissipation 56 Energy Generation 10 Energy Capacity 125 Matter Stores 300 Matter Capacity 300 Sight Range 16 Terrain Scan Density 10 Evasion (%) 40 Recoil Reduction 3 Item Schematics ----------------- Huge Storage Unit | -10/Materials | Hacked Hcp. Storage Unit | -10/Materials | Hacked Robot Schematics ------------------ None Fabricated ------------ Nothing Repaired ---------- Nothing Studied --------- None Alien Tech Used ----------------- None Achievements -------------- None Challenges ------------ None Game ------ Seed BoreSegregatorDirector Manual? 0 Play Time 00:10:17 Cumulative 167.0 hours Start 2026.04.25 @ 14:09:27 End 2026.04.25 @ 14:18:14 Sessions 1 Manual Loads 0 Difficulty Rogue Special Mode None Game No. 211 Rogue 211 Adventurer 0 Explorer 0 Win Type - Total 3 Types 3/0/0/0/0/0/0/0/0/0 Lore% 40 Gallery% 53 Achievement% 44 Wizard Run 0 Options --------- Layout 1 ASCII 0 Keyboard 0 Movement Mouse Keybinds 0 Fullscreen 2 Font 24/Smallcaps Map View 50x35 Zoom Use 7% Tactical HUD 1 Map Filters NONE Filters NONE Steam 1 RUN: 6376f584-168e-4461-81ee-e7e0bc403df9